[Event "EWCCC Online Final 2020"]
[Site "Online"]
[Date "2020.12.21"]
[Round "4.2"]
[White "Lazarne Vajda, Szidonia"]
[Black "Kosteniuk, Alexandra"]
[Result "1/2-1/2"]
[ECO "A46"]
[WhiteElo "2345"]
[BlackElo "2471"]
[Annotator "RC"]
[PlyCount "170"]
[EventDate "2020.12.19"]
[EventType "team-tourn"]
[EventCountry "NET"]
[SourceTitle "playchess.com"]
[Source "ChessBase"]
[SourceQuality "1"]
[TimeControl "900+5"]

1. d4 {[%emt 0:00:04]} Nf6 {[%emt 0:00:03]} 2. Nf3 {[%emt 0:00:05]} e6 {[%emt 0:00:04]} 3. Bf4 {[%emt 0:00:12]} b5 {[%emt 0:00:10]} 4. e3 {[%emt 0:00:22]} Ba6 {[%emt 0:00:09]} 5. h3 {[%emt 0:00:19]} d5 {[%emt 0:00:31]} 6. c3 {[%emt 0:00:13]} c5 {[%emt 0:00:15]} 7. dxc5 {[%emt 0:01:26]} Bxc5 {[%emt 0:00:07]} 8. Nbd2 {[%emt 0:00:20]} O-O {[%emt 0:00:40]} 9. a3 {[%emt 0:00:24]} Bd6 {[%emt 0:00:48]} 10. Bd3 {[%emt 0:01:23]} Bxf4 {[%emt 0:00:08]} 11. exf4 {[%emt 0:00:02]} Nbd7 {[%emt 0:02:25]} 12. Qe2 {[%emt 0:00:53]} Qc7 {[%emt 0:00:25]} 13. Ne5 {[%emt 0:00:30]} Nc5 {[%emt 0:00:02]} 14. O-O {[%emt 0:01:06]} Rfd8 {[%emt 0:00:57]} 15. Ndf3 {[%emt 0:01:00]} Nxd3 {[%emt 0:00:11]} 16. Nxd3 {[%emt 0:00:37]} Rab8 {[%emt 0:01:17]} 17. Nd4 {[%emt 0:00:03]} Ne4 {[%emt 0:02:10]} 18. Rfd1 {[%emt 0:00:25]} Bc8 {[%emt 0:00:38]} 19. a4 {[%emt 0:01:36]} bxa4 {[%emt 0:00:14]} 20. Rxa4 {[%emt 0:00:05]} Bd7 {[%emt 0:00:20]} 21. Ra3 {[%emt 0:00:06]} a5 {[%emt 0:00:09]} 22. Ne5 {[%emt 0:00:35]} Be8 {[%emt 0:00:04]} 23. c4 {[%emt 0:01:02]} Nf6 {[%emt 0:01:16]} 24. f5 {[%emt 0:01:16]} exf5 {[%emt 0:00:02]} 25. Nxf5 {[%emt 0:00:16]} dxc4 {[%emt 0:00:12]} 26. Rxd8 {[%emt 0:00:41]} Rxd8 {[%emt 0:00:07]} 27. Nxc4 {[%emt 0:00:19]} Bb5 {[%emt 0:00:05]} 28. Rc3 {[%emt 0:00:02]} Re8 {[%emt 0:00:17]} 29. Nfe3 {[%emt 0:00:19]} Ne4 {[%emt 0:00:26]} 30. Rc2 {[%emt 0:00:02]} Qd7 {[%emt 0:00:17]} 31. b3 {[%emt 0:00:12]} Qd4 {[%emt 0:00:50]} 32. Qd1 {[%emt 0:00:20]} Qxd1+ {[%emt 0:00:27]} 33. Nxd1 {[%emt 0:00:03]} a4 {[%emt 0:00:05]} 34. bxa4 {[%emt 0:00:17]} Bxa4 {[%emt 0:00:04]} 35. Rc1 {[%emt 0:00:02]} Rc8 {[%emt 0:00:40]} 36. Ndb2 {[%emt 0:00:27]} Bb3 {[%emt 0:00:01]} 37. Re1 {[%emt 0:00:02]} Bxc4 {[%emt 0:00:01]} 38. Rxe4 {[%emt 0:00:02]} Be6 {[%emt 0:00:02]} 39. Nd3 {[%emt 0:00:10]} g6 {[%emt 0:00:02]} 40. Re3 {[%emt 0:00:05]} h5 {[%emt 0:00:06]} 41. Kh2 {[%emt 0:00:02]} Rc2 {[%emt 0:00:08]} 42. Nf4 {[%emt 0:00:08]} Bf5 {[%emt 0:00:08]} 43. Re2 {[%emt 0:00:03]} Rc4 {[%emt 0:00:07]} 44. g3 {[%emt 0:00:02]} h4 {[%emt 0:00:07]} 45. Nd5 {[%emt 0:00:05]} hxg3+ {[%emt 0:00:01]} 46. fxg3 {[%emt 0:00:03]} Kf8 {[%emt 0:00:29]} 47. g4 {[%emt 0:00:08]} Be6 {[%emt 0:00:09]} 48. Ne3 {[%emt 0:00:13]} Rc3 {[%emt 0:00:07]} 49. Kg3 {[%emt 0:00:06]} Rd3 {[%emt 0:00:06]} 50. Kf2 {[%emt 0:00:02]} g5 {[%emt 0:00:08]} 51. Rb2 {[%emt 0:00:03]} Kg7 {[%emt 0:00:06]} 52. Rc2 {[%emt 0:00:20]} Kf6 {[%emt 0:00:09]} 53. Rc5 {[%emt 0:00:04]} Ra3 {[%emt 0:00:05]} 54. Rb5 {[%emt 0:00:08]} Kg6 {[%emt 0:00:17]} 55. Rc5 {[%emt 0:00:03]} Ra4 {[%emt 0:00:09]} 56. Rb5 {[%emt 0:00:02]} Rf4+ {[%emt 0:00:01]} 57. Kg3 {[%emt 0:00:04]} Rd4 {[%emt 0:00:04]} 58. Kf2 {[%emt 0:00:03]} f6 {[%emt 0:00:12]} 59. Kg3 {[%emt 0:00:06]} Re4 {[%emt 0:00:11]} 60. Kf3 {[%emt 0:00:04]} Rf4+ {[%emt 0:00:01]} 61. Kg3 {[%emt 0:00:02]} Rd4 {[%emt 0:00:10]} 62. Kf3 {[%emt 0:00:02]} Rd2 {[%emt 0:00:04]} 63. Rb6 {[%emt 0:00:06]} Bd7 {[%emt 0:00:09]} 64. Kg3 {[%emt 0:00:07]} Kf7 {[%emt 0:00:06]} 65. Kf3 {[%emt 0:00:03]} Ke7 {[%emt 0:00:02]} 66. Kg3 {[%emt 0:00:02]} Be6 {[%emt 0:00:04]} 67. Kf3 {[%emt 0:00:03]} Ra2 {[%emt 0:00:06]} 68. Kg3 {[%emt 0:00:02]} Ra3 {[%emt 0:00:02]} 69. Kf2 {[%emt 0:00:02]} Kd7 {[%emt 0:00:05]} 70. Ke2 {[%emt 0:00:08]} Ke7 {[%emt 0:00:05]} 71. Kf2 {[%emt 0:00:02]} Kd7 {[%emt 0:00:04]} 72. Ke2 {[%emt 0:00:03]} Ra5 {[%emt 0:00:07]} 73. Kf2 {[%emt 0:00:03]} Re5 {[%emt 0:00:02]} 74. Kf3 {[%emt 0:00:05]} Kc7 {[%emt 0:00:02]} 75. Rb4 {[%emt 0:00:07]} Bd7 {[%emt 0:00:06]} 76. Nf1 {[%emt 0:00:13]} Bc6+ {[%emt 0:00:02]} 77. Kf2 {[%emt 0:00:01]} Rd5 {[%emt 0:00:06]} 78. Rb3 {[%emt 0:00:05]} Rd4 {[%emt 0:00:05]} 79. Ng3 {[%emt 0:00:04]} Rf4+ {[%emt 0:00:07]} 80. Kg1 {[%emt 0:00:03]} Rc4 {[%emt 0:00:15]} 81. Nh5 {[%emt 0:00:05]} Rc1+ {[%emt 0:00:03]} 82. Kf2 {[%emt 0:00:02]} Rc2+ {[%emt 0:00:02]} 83. Kg1 {[%emt 0:00:07]} Rc1+ {[%emt 0:00:02]} 84. Kf2 {[%emt 0:00:01]} Rc2+ {[%emt 0:00:01]} 85. Kg1 {[%emt 0:00:06]} Rc1+ {[%emt 0:00:01]} 1/2-1/2